fUST/lending_fUST_20240704
["ID","MTS","AMOUNT","RATE_DAILY","PERIOD"]
[331148790,1720105840341,-500.0,0.00013698,2]
[331148793,1720105840356,-500.0,0.00013698,2]
[331148795,1720105840368,-500.0,0.00013698,2]
[331148797,1720105840383,-500.0,0.00013698,2]
[331148799,1720105840396,-500.0,0.00013698,2]
[331148800,1720105840411,-500.0,0.00013698,2]
[331148801,1720105840423,-500.0,0.00013698,2]
[331148802,1720105840436,-500.0,0.00013698,2]
[331148803,1720105840449,-500.0,0.00013698,2]
[331148804,1720105840461,-500.0,0.00013698,2]
[331148805,1720105840474,-883.65,0.00013698,2]
[331148806,1720105840485,-500.0,0.00013698,2]
[331148807,1720105840496,-566.71895261,0.00013698,2]
[331148808,1720105840509,-500.0,0.00013698,2]
[331148809,1720105840521,-263.11589167,0.00013698,2]
[331148810,1720105840534,-500.0,0.00013698,2]
[331148811,1720105840546,-500.0,0.00013698,2]
[331148812,1720105840560,-861.44,0.00013698,2]
[331148813,1720105840574,-500.0,0.00013698,2]
[331148814,1720105840588,-500.0,0.00013698,2]
[331148815,1720105840602,-757.27,0.00013698,2]
[331148816,1720105840616,-500.0,0.00013698,2]
[331148817,1720105840627,-500.0,0.00013698,2]
[331148818,1720105840637,-515.19749725,0.00013698,2]
[331148819,1720105840648,-350.18872877,0.00013698,2]
[331148820,1720105840663,-500.0,0.00013698,2]
[331148821,1720105840675,-529.67,0.00013698,2]
[331148822,1720105840687,-500.0,0.00013698,2]
[331148823,1720105840700,-500.0,0.00013698,2]
[331148824,1720105840710,-528.15327025,0.00013698,2]
[331148825,1720105840721,-258.5109013,0.00013698,2]
[331148826,1720105840734,-500.0,0.00013698,2]
[331148827,1720105840744,-500.0,0.00013698,2]
[331148828,1720105840757,-500.0,0.00013698,2]
[331148829,1720105840769,-500.0,0.00013698,2]
[331148831,1720105840779,-500.0,0.00013698,2]
[331148833,1720105840789,-500.0,0.00013698,2]
[331148835,1720105840799,-500.0,0.00013698,2]
[331148837,1720105840810,-500.0,0.00013698,2]
[331148839,1720105840821,-500.0,0.00013698,2]
[331148841,1720105840833,-500.0,0.00013698,2]
[331148843,1720105840846,-673.79,0.00013698,2]
[331148845,1720105840857,-2439.43,0.00013698,2]
[331148847,1720105840868,-500.0,0.00013698,2]
[331148849,1720105840879,-500.0,0.00013698,2]
[331148851,1720105840891,-500.0,0.00013698,2]
[331148853,1720105840904,-500.0,0.00013698,2]
[331148855,1720105840915,-3141.91,0.00013698,2]
[331148857,1720105840926,-1057.26,0.00013698,2]
[331148858,1720105840938,-500.0,0.00013698,2]
[331148859,1720105840950,-500.0,0.00013698,2]
[331148860,1720105840961,-500.0,0.00013698,2]
[331148861,1720105840975,-500.0,0.00013698,2]
[331148862,1720105840986,-1677.28,0.00013698,2]
[331148863,1720105840997,-500.0,0.00013698,2]
[331148864,1720105841008,-500.0,0.00013698,2]
[331148865,1720105841019,-500.0,0.00013698,2]
[331148866,1720105841030,-567.98322241,0.00013698,2]
[331148867,1720105841041,-502.93648634,0.00013698,2]
[331148868,1720105841052,-573.15067934,0.00013698,2]
[331148869,1720105841063,-500.0,0.00013698,2]
[331148870,1720105841074,-401.47481016,0.00013698,2]
[331148871,1720105841086,-500.0,0.00013698,2]
[331148872,1720105841097,-505.93559937,0.00013698,2]
[331148873,1720105841108,-500.0,0.00013698,2]
[331148874,1720105841119,-1410.0,0.00013698,2]
[331148875,1720105841130,-379.99700905,0.00013698,2]
[331148876,1720105841141,-500.0,0.00013698,2]
[331148877,1720105841153,-500.0,0.00013698,2]
[331148878,1720105841164,-502.86679195,0.00013698,2]
[331148879,1720105841175,-500.0,0.00013698,2]
[331148880,1720105841186,-500.0,0.00013698,2]
[331148881,1720105841197,-500.0,0.00013698,2]
[331148882,1720105841208,-1165.08,0.00013698,2]
[331148883,1720105841218,-267.7380727,0.00013698,2]
[331148884,1720105841229,-501.55052969,0.00013698,2]
[331148885,1720105841239,-501.11947081,0.00013698,2]
[331148886,1720105841250,-500.0,0.00013698,2]
[331148887,1720105841261,-5993.67,0.00013698,2]
[331148888,1720105841272,-511.39,0.00013698,2]
[331148889,1720105841283,-500.0,0.00013698,2]
[331148890,1720105841294,-500.0,0.00013698,2]
[331148891,1720105841304,-500.0,0.00013698,2]
[331148892,1720105841315,-500.0,0.00013698,2]
[331148893,1720105841326,-500.0,0.00013698,2]
[331148894,1720105841337,-500.0,0.00013698,2]
[331148895,1720105841348,-500.0,0.00013698,2]
[331148896,1720105841358,-500.0,0.00013698,2]
[331148897,1720105841369,-500.0,0.00013698,2]
[331148898,1720105841380,-500.0,0.00013698,2]
[331148899,1720105841390,-864.55,0.00013698,2]
[331148900,1720105841402,-500.0,0.00013698,2]
[331148901,1720105841413,-500.0,0.00013698,2]
[331148902,1720105841423,-500.0,0.00013698,2]
[331148903,1720105841435,-198.6592862,0.00013698,2]
[331148904,1720105841446,-3198.57,0.00013698,2]
[331148905,1720105841457,-512.4875995,0.00013698,2]
[331148906,1720105841469,-500.0,0.00013698,2]
[331148907,1720105841480,-500.0,0.00013698,2]
[331148908,1720105841492,-500.0,0.00013698,2]
[331148909,1720105841504,-500.0,0.00013698,2]
[331148910,1720105841666,-500.0,0.00013698,2]
[331148911,1720105841682,-500.0,0.00013698,2]
[331148912,1720105841692,-501.72654803,0.00013698,2]
[331148913,1720105841701,-9907.86,0.00013698,2]
[331148914,1720105841711,-500.0,0.00013698,2]
[331148915,1720105841719,-500.0,0.00013698,2]
[331148916,1720105841729,-500.0,0.00013698,2]
[331148917,1720105841737,-500.0,0.00013698,2]
[331148918,1720105841746,-180.51399735,0.00013698,2]
[331148919,1720105841755,-500.0,0.00013698,2]
[331148920,1720105841765,-500.0,0.00013698,2]
[331148921,1720105841775,-500.0,0.00013698,2]
[331148922,1720105841785,-500.0,0.00013698,2]
[331148923,1720105841794,-17835.52,0.00013698,2]
[331148924,1720105841804,-500.0,0.00013698,2]
[331148925,1720105841813,-500.0,0.00013698,2]
[331148926,1720105841822,-500.0,0.00013698,2]
[331148927,1720105841833,-1370.16,0.00013698,2]
[331148928,1720105841843,-840.74,0.00013698,2]
[331148929,1720105841852,-500.0,0.00013698,2]
[331148930,1720105841862,-502.28656995,0.00013698,2]
[331148931,1720105841871,-500.0,0.00013698,2]
[331148932,1720105841881,-645.67,0.00013698,2]
[331148933,1720105841895,-1814.38,0.00013698,2]
[331148934,1720105841907,-1262.7,0.00013698,2]
[331148935,1720105841915,-500.0,0.00013698,2]
[331148936,1720105841925,-500.0,0.00013698,2]
[331148937,1720105841935,-500.0,0.00013698,2]
[331148938,1720105841944,-507.73435802,0.00013698,2]
[331148939,1720105841955,-500.0,0.00013698,2]
[331148940,1720105841967,-3208.93,0.00013698,2]
[331148941,1720105841976,-5626.26,0.00013698,2]
[331148942,1720105841985,-500.0,0.00013698,2]
[331148943,1720105841994,-188.04326466,0.00013698,2]
[331148944,1720105842003,-500.0,0.00013698,2]
[331148945,1720105842013,-500.0,0.00013698,2]
[331148946,1720105842022,-500.0,0.00013698,2]
[331148947,1720105842031,-518.52413287,0.00013698,2]
[331148948,1720105842041,-500.0,0.00013698,2]
[331148949,1720105842050,-500.0,0.00013698,2]
[331148950,1720105842060,-500.0,0.00013698,2]
[331148951,1720105842069,-502.83223407,0.00013698,2]
[331148952,1720105842078,-500.0,0.00013698,2]
[331148953,1720105842087,-500.0,0.00013698,2]
[331148954,1720105842097,-500.0,0.00013698,2]
[331148955,1720105842106,-503.94876905,0.00013698,2]
[331148956,1720105842116,-500.0,0.00013698,2]
[331148957,1720105842125,-500.0,0.00013698,2]
[331148958,1720105842134,-1093.14,0.00013698,2]
[331148959,1720105842144,-500.0,0.00013698,2]
[331148960,1720105842155,-1357.71,0.00013698,2]
[331148961,1720105842163,-11856.720118,0.00013699,2]
[331148962,1720105842172,-3000.0,0.00013699,2]
[331148963,1720105842181,-505.066276,0.00013699,2]
[331148964,1720105842191,-750.86618105,0.00013735,2]
[331148965,1720105842200,-11849.5004026,0.0001377,2]
[331148966,1720105842210,-11849.5004026,0.00013778,2]
[331148967,1720105842219,-150.0,0.00013779,2]
[331148968,1720105842228,-23699.0008052,0.00013781,2]
[331148969,1720105842237,-447.10614073,0.00013788,2]
[331148970,1720105842246,-500.0,0.00013788,2]
[331148971,1720105842257,-1094.39,0.00013788,2]
[331148972,1720105842266,-500.0,0.00013788,2]
[331148973,1720105842276,-1089.5,0.00013788,2]
[331148974,1720105842287,-1089.5,0.00013789,2]
[331148975,1720105842297,-500.0,0.0001379,2]
[331148976,1720105842306,-500.0,0.0001379,2]
[331148977,1720105842315,-500.0,0.0001379,2]
[331148978,1720105842324,-500.0,0.0001379,2]
[331148979,1720105842333,-500.0,0.0001379,2]
[331148980,1720105842343,-500.0,0.0001379,2]
[331148981,1720105842352,-4900.31,0.0001379,2]
[331148982,1720105842361,-500.0,0.0001379,2]
[331148983,1720105842370,-500.0,0.0001379,2]
[331148984,1720105842379,-502.57959473,0.0001379,2]
[331148985,1720105842388,-500.0,0.0001379,2]
[331148986,1720105842397,-500.0,0.0001379,2]
[331148987,1720105842409,-500.0,0.0001379,2]
[331148988,1720105842418,-500.0,0.0001379,2]
[331148989,1720105842427,-739.59,0.0001379,2]
[331148990,1720105842436,-1033.84,0.0001379,2]
[331148991,1720105842445,-500.0,0.0001379,2]
[331148992,1720105842454,-500.0,0.0001379,2]
[331148993,1720105842466,-805.21,0.0001379,2]
[331148994,1720105842475,-500.0,0.0001379,2]
[331148995,1720105842484,-500.0,0.0001379,2]
[331148996,1720105842493,-500.0,0.0001379,2]
[331148997,1720105842502,-617.2,0.0001379,2]
[331148998,1720105842510,-500.0,0.0001379,2]
[331148999,1720105842519,-747.45,0.0001379,2]
[331149000,1720105842528,-500.0,0.0001379,2]
[331149001,1720105842537,-500.0,0.0001379,2]
[331149002,1720105842546,-588.3,0.0001379,2]
[331149003,1720105842555,-500.0,0.0001379,2]
[331149004,1720105842564,-500.0,0.0001379,2]
[331149005,1720105842572,-500.0,0.0001379,2]
[331149006,1720105842581,-500.0,0.0001379,2]
[331149007,1720105842590,-500.0,0.0001379,2]
[331149008,1720105842599,-500.0,0.0001379,2]
[331149009,1720105842607,-339.09938669,0.0001379,2]
[331149010,1720105842616,-500.0,0.0001379,2]
[331149011,1720105842625,-500.0,0.0001379,2]
[331149012,1720105842635,-500.0,0.0001379,2]
[331149013,1720105842644,-500.0,0.0001379,2]
[331149014,1720105842653,-585.92,0.0001379,2]
[331149015,1720105842663,-500.0,0.0001379,2]
[331149016,1720105842672,-1089.5,0.0001379,2]
[331149017,1720105842681,-500.0,0.0001379,2]
[331149018,1720105842690,-561.16821501,0.0001379,2]
[331149019,1720105842699,-574.97148517,0.0001379,2]
[331149020,1720105842709,-500.0,0.0001379,2]
[331149021,1720105842719,-500.0,0.00013791,2]
[331149022,1720105842728,-289.45190517,0.00013791,2]
[331149023,1720105842737,-283.89414063,0.00013791,2]
[331149024,1720105842976,-216.10585937,0.00013791,2]
[331149025,1720105842986,-218.12414058,0.00013791,2]
[331149086,1720105845095,-281.87585942,0.00013791,2]
[331149087,1720105845104,-500.0,0.00013791,2]
[331149088,1720105845114,-500.0,0.00013791,2]
[331149089,1720105845123,-500.0,0.00013791,2]
[331149090,1720105845132,-500.0,0.00013791,2]
[331149091,1720105845142,-319.83636117,0.00013791,2]
[331149092,1720105845151,-516.43,0.00013791,2]
[331149093,1720105845167,-512.11044345,0.00013791,2]
[331149094,1720105845176,-507.19125926,0.00013791,2]
[331149095,1720105845188,-269.25993227,0.00013791,2]
[331149096,1720105845197,-502.7887817,0.00013791,2]
[331149097,1720105845206,-500.0,0.00013791,2]
[331149098,1720105845215,-500.0,0.00013791,2]
[331149099,1720105845225,-500.0,0.00013791,2]
[331149100,1720105845235,-500.0,0.00013791,2]
[331149101,1720105845244,-500.0,0.00013791,2]
[331149102,1720105845253,-468.58421245,0.00013791,2]
[331149103,1720105845263,-500.0,0.00013791,2]
[331149104,1720105845272,-500.0,0.00013791,2]
[331149105,1720105845281,-755.2,0.00013791,2]
[331149106,1720105845291,-501.98538086,0.00013791,2]
[331149107,1720105845300,-500.0,0.00013791,2]
[331149108,1720105845310,-500.0,0.00013791,2]
[331149109,1720105845319,-500.0,0.00013791,2]
[331149110,1720105845328,-500.0,0.00013791,2]
[331149111,1720105845338,-500.0,0.00013791,2]
[331149112,1720105845348,-500.0,0.00013791,2]
[331149113,1720105845358,-500.0,0.00013791,2]
[331149114,1720105845368,-500.0,0.00013791,2]
[331149115,1720105845378,-500.0,0.00013791,2]
[331149116,1720105845388,-505.14767051,0.00013791,2]
[331149117,1720105845397,-508.49626885,0.00013791,2]
[331149118,1720105845408,-500.0,0.00013791,2]
[331149119,1720105845417,-500.0,0.00013791,2]
[331149120,1720105845426,-500.0,0.00013791,2]
[331149121,1720105845436,-504.67055399,0.00013791,2]
[331149122,1720105845446,-387.67477119,0.00013791,2]
[331149123,1720105845456,-367.40365598,0.00013791,2]
[331149124,1720105845466,-500.0,0.00013791,2]
[331149125,1720105845475,-500.0,0.00013791,2]
[331149126,1720105845485,-500.0,0.00013791,2]
[331149127,1720105845494,-500.0,0.00013791,2]
[331149128,1720105845503,-512.34659134,0.00013791,2]
[331149129,1720105845512,-500.0,0.00013791,2]
[331149130,1720105845521,-500.0,0.00013791,2]
[331149131,1720105845531,-197.22880303,0.00013791,2]
[331149132,1720105845541,-500.0,0.00013791,2]
[331149133,1720105845550,-500.0,0.00013791,2]
[331149134,1720105845560,-508.59456744,0.00013791,2]
[331149135,1720105845569,-500.0,0.00013791,2]
[331149136,1720105845578,-500.0,0.00013791,2]
[331149137,1720105845588,-504.05409318,0.00013791,2]
[331149138,1720105845598,-500.0,0.00013791,2]
[331149139,1720105845607,-571.17164899,0.00013791,2]
[331149140,1720105845617,-437.8829996,0.00013791,2]
[331149141,1720105845626,-510.67476011,0.00013791,2]
[331149142,1720105845635,-500.0,0.00013791,2]
[331149143,1720105845645,-1650.93,0.00013791,2]
[331149144,1720105845655,-500.0,0.00013791,2]
[331149145,1720105845666,-500.0,0.00013791,2]
[331149146,1720105845675,-500.0,0.00013791,2]
[331149147,1720105845685,-483.36232367,0.00013791,2]
[331149148,1720105845694,-500.0,0.00013791,2]
[331149149,1720105845704,-500.0,0.00013791,2]
[331149150,1720105845714,-500.0,0.00013791,2]
[331149151,1720105845723,-608.14,0.00013791,2]
[331149152,1720105845732,-500.0,0.00013791,2]
[331149153,1720105845742,-362.11181541,0.00013791,2]
[331149154,1720105846187,-500.0,0.00013698,2]
[331149155,1720105846196,-176.41641629,0.00013698,2]
[331149156,1720105846208,-323.58358371,0.00013698,2]
[331149157,1720105846217,-500.0,0.00013698,2]
[331149158,1720105846226,-160.06394264,0.00013791,2]
[331149159,1720105846236,-500.0,0.00013791,2]
[331149160,1720105846246,-504.23984414,0.00013791,2]
[331149161,1720105846255,-500.0,0.00013791,2]
[331149164,1720105846265,-500.0,0.00013791,2]
[331149166,1720105846274,-848.06666295,0.00013793,2]
[331149168,1720105846283,-3182.69600154,0.00013793,2]
[331149170,1720105846295,-8666.80440106,0.00013793,2]
[331149172,1720105846304,-203.88045946,0.00013801,2]
[331149176,1720105846315,-296.11954054,0.00013801,2]
[331149177,1720105846324,-134.23581576,0.00013801,2]
[331149180,1720105846336,-365.76418424,0.00013801,2]
[331149181,1720105846346,-500.0,0.00013801,2]
[331149183,1720105846355,-556.55656625,0.00013801,2]
[331149184,1720105846364,-500.0,0.00013801,2]
[331149186,1720105846373,-500.0,0.00013801,2]
[331149187,1720105846382,-500.0,0.00013801,2]
[331149189,1720105846391,-503.48209233,0.00013801,2]
[331149190,1720105846400,-446.32104936,0.00013801,2]
[331149224,1720105846999,-500.0,0.00013698,2]
[331149226,1720105847009,-500.0,0.00013698,2]
[331149228,1720105847019,-500.0,0.00013698,2]
[331149230,1720105847029,-53.67895064,0.00013801,2]
[331149232,1720105847039,-270.48384222,0.00013801,2]
[331149233,1720105847047,-1000.0,0.00013801,2]
[331149234,1720105847057,-1089.5,0.00013802,2]
[331149235,1720105847066,-500.0,0.00013803,2]
[331149236,1720105847076,-687.77169573,0.00013803,2]
[331149237,1720105847087,-537.87467136,0.00013803,2]
[331149238,1720105847098,-3017.39999832,0.00013803,2]
[331149239,1720105847110,-4444.37835935,0.00013803,2]
[331149247,1720105885398,268.37783196,0.00014999,7]
[331149248,1720105896336,294.13616623,9.999e-05,2]
[331149249,1720105898246,332.33444095,9.999e-05,2]
[331149250,1720105906762,412.40789044,9.999e-05,2]
[331149251,1720105913707,525.08585216,9.999e-05,2]
[331149252,1720105915394,268.37783196,0.00014999,7]
[331149253,1720105921214,521.72882679,0.00014999,7]
[331149254,1720105924838,404.67602219,9.999e-05,2]
[331149255,1720105944959,743.0,0.00025,120]
[331149256,1720105955521,320.74111303,9.999e-05,2]
[331149258,1720105962907,268.37783196,0.0001212,7]
[331149259,1720105978705,521.72882679,0.0001212,7]
[331149261,1720106027719,521.72882679,0.00014691,7]
[331149262,1720106034928,268.37783196,0.00014691,7]
[331149263,1720106071111,150.5,0.00013966,62]
[331149264,1720106071594,150.5,0.00013956,62]
[331149265,1720106072076,150.5,0.00013946,62]
[331149266,1720106072545,178.5,0.0001721,62]
[331149268,1720106191122,150.5,0.0001397,62]
[331149269,1720106191225,150.5,0.0001397,62]
[331149270,1720106191253,150.5,0.0001397,62]
[331149271,1720106191287,150.5,0.0001397,62]
[331149272,1720106191624,150.5,0.0001396,62]
[331149273,1720106191653,150.5,0.0001396,62]
[331149274,1720106191706,150.5,0.0001396,62]
[331149275,1720106191915,150.5,0.0001396,62]
[331149276,1720106192115,153.21,0.0001395,62]
[331149277,1720106192173,150.5,0.0001395,62]
[331149278,1720106192519,162.48,0.0001395,62]
[331149279,1720106287245,420.04840267,0.00014999,7]
[331149282,1720106395794,412.50872029,9.999e-05,2]
[331149292,1720106564420,331.05326775,0.00014999,7]
[331149293,1720106570028,200.68000754,9.999e-05,2]
[331149296,1720106649801,412.50872029,9.999e-05,2]
[331149299,1720106740377,565.90871239,9.999e-05,2]
[331149300,1720106752813,412.50872029,9.999e-05,2]
[331149301,1720106767816,412.50872029,9.999e-05,2]
[331149306,1720106847144,282.93616103,9.999e-05,2]
[331149309,1720106880818,412.50872029,9.999e-05,2]
[331149310,1720106924744,154.88383712,9.999e-05,2]
[331149312,1720106935591,155.63,0.00010959,2]
[331149372,1720106975768,-877.1743928,0.0001192,2]
[331149373,1720106975872,-292.91626985,0.0001192,2]
[331149374,1720106975937,-490.92637027,0.0001212,2]
[331149375,1720106976275,93.33175268,0.0001212,2]
[331149382,1720107032774,-815.19077056,0.0001202,2]
[331149383,1720107032784,-65.01493955,0.0001212,2]
[331149384,1720107032793,-300.0,0.00012318,2]
[331149385,1720107032802,-3002.24352116,0.00012319,2]
[331149386,1720107032814,-2470.13543766,0.00012319,2]
[331149389,1720107032826,-652.22951312,0.00012319,2]
[331149433,1720107039311,-18775.39152806,0.00012319,2]
[331149435,1720107039323,-250.0,0.00012695,2]
[331149436,1720107039334,-420.0,0.00013549,2]
[331149437,1720107039345,-150.0,0.00013578,2]
[331149438,1720107039357,-955.17339478,0.00013598,2]
[331149439,1720107039367,-955.17339474,0.00013667,2]
[331149440,1720107039377,-66579.2355806,0.00013688,2]
[331149441,1720107039387,-16644.8088952,0.00013689,2]
[331149442,1720107039398,-500.0,0.00013698,2]
[331149443,1720107039407,-10102.83,0.00013698,2]
[331149444,1720107039417,-639.6,0.00013698,2]
[331149445,1720107039427,-500.0,0.00013698,2]
[331149446,1720107039436,-500.0,0.00013698,2]
[331149447,1720107039446,-500.0,0.00013698,2]
[331149448,1720107039456,-184.70558059,0.00013698,2]
[331149449,1720107039465,-500.0,0.00013698,2]
[331149450,1720107039475,-500.0,0.00013698,2]
[331149451,1720107039484,-500.0,0.00013698,2]
[331149452,1720107039494,-500.0,0.00013698,2]
[331149453,1720107039504,-327.66999418,0.00013698,2]
[331149454,1720107039514,-200.77325294,0.00013698,2]
[331149455,1720107039524,-500.0,0.00013698,2]
[331149456,1720107039533,-500.0,0.00013698,2]
[331149457,1720107039543,-500.0,0.00013698,2]
[331149458,1720107039552,-500.0,0.00013698,2]
[331149459,1720107039562,-505.31031516,0.00013698,2]
[331149460,1720107039572,-1582.14,0.00013698,2]
[331149461,1720107039582,-330.52327294,0.00013698,2]
[331149462,1720107039720,-500.0,0.00013698,2]
[331149463,1720107039731,-500.0,0.00013698,2]
[331149464,1720107039741,-500.0,0.00013698,2]
[331149465,1720107039751,-500.0,0.00013698,2]
[331149466,1720107039760,-500.0,0.00013698,2]
[331149467,1720107039770,-500.0,0.00013698,2]
[331149468,1720107039780,-500.0,0.00013698,2]
[331149469,1720107039789,-500.0,0.00013698,2]
[331149470,1720107039799,-500.0,0.00013698,2]
[331149471,1720107039808,-500.0,0.00013698,2]
[331149472,1720107039818,-156.56643975,0.00013698,2]
[331149473,1720107039827,-500.0,0.00013698,2]
[331149474,1720107039837,-500.0,0.00013698,2]
[331149475,1720107039847,-500.0,0.00013698,2]
[331149476,1720107039857,-500.0,0.00013698,2]
[331149477,1720107039867,-506.19947445,0.00013698,2]
[331149478,1720107039876,-500.0,0.00013698,2]
[331149479,1720107039886,-502.47280235,0.00013698,2]
[331149480,1720107039896,-500.0,0.00013698,2]
[331149481,1720107039906,-1096.35,0.00013698,2]
[331149482,1720107039916,-505.58815916,0.00013698,2]
[331149483,1720107039926,-500.0,0.00013698,2]
[331149484,1720107039937,-500.0,0.00013698,2]
[331149485,1720107039947,-500.0,0.00013698,2]
[331149486,1720107039956,-500.0,0.00013698,2]
[331149488,1720107039966,-500.0,0.00013698,2]
[331149489,1720107039975,-503.05307365,0.00013698,2]
[331149491,1720107039985,-582.8,0.00013698,2]
[331149493,1720107039994,-501.74326954,0.00013698,2]
[331149495,1720107040003,-503.60518429,0.00013698,2]
[331149496,1720107040013,-500.0,0.00013698,2]
[331149497,1720107040023,-500.0,0.00013698,2]
[331149498,1720107040034,-500.0,0.00013698,2]
[331149499,1720107040044,-500.0,0.00013698,2]
[331149500,1720107040055,-500.0,0.00013698,2]
[331149501,1720107040067,-500.0,0.00013698,2]
[331149502,1720107040077,-500.0,0.00013698,2]
[331149503,1720107040087,-1513.02,0.00013698,2]
[331149504,1720107040097,-1513.02,0.00013698,2]
[331149505,1720107040108,-1513.02,0.00013698,2]
[331149506,1720107040123,-1513.02,0.00013698,2]
[331149508,1720107040133,-500.0,0.00013698,2]
[331149510,1720107040143,-500.0,0.00013698,2]
[331149512,1720107040154,-500.0,0.00013698,2]
[331149514,1720107040163,-500.0,0.00013698,2]
[331149516,1720107040174,-500.0,0.00013698,2]
[331149518,1720107040184,-500.0,0.00013698,2]
[331149519,1720107040195,-500.0,0.00013698,2]
[331149520,1720107040205,-548.5553125,0.00013698,2]
[331149521,1720107040215,-500.0,0.00013698,2]
[331149522,1720107040226,-500.0,0.00013698,2]
[331149523,1720107040237,-504.25187794,0.00013698,2]
[331149524,1720107040247,-500.0,0.00013698,2]
[331149525,1720107040258,-500.0,0.00013698,2]
[331149526,1720107040268,-500.0,0.00013698,2]
[331149527,1720107040283,-500.0,0.00013698,2]
[331149528,1720107040294,-500.0,0.00013698,2]
[331149529,1720107040305,-500.0,0.00013698,2]
[331149530,1720107040316,-867.66,0.00013698,2]
[331149531,1720107040326,-500.0,0.00013698,2]
[331149532,1720107040336,-1862.47,0.00013698,2]
[331149533,1720107040347,-500.0,0.00013698,2]
[331149534,1720107040360,-755.4,0.00013698,2]
[331149535,1720107040372,-500.0,0.00013698,2]
[331149536,1720107040382,-500.0,0.00013698,2]
[331149537,1720107040391,-500.0,0.00013698,2]
[331149538,1720107040401,-500.0,0.00013698,2]
[331149539,1720107040411,-500.0,0.00013698,2]
[331149540,1720107040421,-500.0,0.00013698,2]
[331149541,1720107040431,-500.0,0.00013698,2]
[331149542,1720107040441,-500.0,0.00013698,2]
[331149543,1720107040451,-500.0,0.00013698,2]
[331149544,1720107040461,-645.92,0.00013698,2]
[331149545,1720107040471,-500.0,0.00013698,2]
[331149546,1720107040481,-509.26101303,0.00013698,2]
[331149547,1720107040491,-500.0,0.00013698,2]
[331149548,1720107040500,-500.0,0.00013698,2]
[331149549,1720107040510,-500.0,0.00013698,2]
[331149550,1720107040520,-500.0,0.00013698,2]
[331149551,1720107040530,-500.0,0.00013698,2]
[331149552,1720107040539,-500.0,0.00013698,2]
[331149553,1720107040549,-500.0,0.00013698,2]
[331149554,1720107040558,-500.0,0.00013698,2]
[331149555,1720107040568,-500.0,0.00013698,2]
[331149556,1720107040578,-500.0,0.00013698,2]
[331149557,1720107040588,-500.0,0.00013698,2]
[331149558,1720107040598,-500.0,0.00013698,2]
[331149559,1720107040608,-500.0,0.00013698,2]
[331149560,1720107040619,-505.48944372,0.00013698,2]
[331149561,1720107040629,-500.0,0.00013698,2]
[331149562,1720107040639,-500.0,0.00013698,2]
[331149563,1720107040649,-500.0,0.00013698,2]
[331149564,1720107040659,-500.0,0.00013698,2]
[331149565,1720107040669,-500.0,0.00013698,2]
[331149566,1720107040679,-500.0,0.00013698,2]
[331149567,1720107040689,-500.0,0.00013698,2]
[331149568,1720107040699,-1180.0,0.00013698,2]
[331149569,1720107040709,-500.0,0.00013698,2]
[331149570,1720107040719,-500.0,0.00013698,2]
[331149571,1720107040730,-1580.98,0.00013698,2]
[331149572,1720107040740,-500.0,0.00013698,2]